bitfinex/quotes_BTCUSD_20230114
["timestamp","ask_amount","ask_price","bid_price","bid_amount"]
[1673732471260,0.14283906,20903.0,20900.0,0.2524]
[1673732471510,1.61390966,20903.0,20899.0,0.00499589]
[1673732471811,0.14283906,20902.0,20901.0,0.138]
[1673732472022,0.35709766,20903.0,20899.0,0.00499589]
[1673732472289,1.31391366,20903.0,20899.0,0.00499589]
[1673732472773,1.10365506,20903.0,20899.0,0.14299589]
[1673732473015,1.31791366,20903.0,20899.0,0.14299589]
[1673732473523,0.14283906,20902.0,20899.0,0.14299589]
[1673732473767,0.62126206,20902.0,20899.0,0.00499589]
[1673732474024,0.62126206,20902.0,20899.0,0.14399589]
[1673732474528,0.62126206,20902.0,20899.0,0.00499589]
[1673732475290,0.62123906,20903.0,20899.0,0.00499589]
[1673732475539,0.62123906,20903.0,20899.0,0.19572184]
[1673732476284,0.62123906,20903.0,20899.0,0.00499589]
[1673732476556,1.09963906,20903.0,20899.0,0.00499589]
[1673732476818,1.10363906,20903.0,20899.0,0.14399589]
[1673732477058,1.31789766,20903.0,20899.0,0.14399589]
[1673732477547,0.14283906,20902.0,20899.0,0.14399589]
[1673732477797,0.77855274,20902.0,20899.0,0.14399589]
[1673732478047,1.1356504,20902.0,20899.0,0.14399589]
[1673732478303,0.62127506,20902.0,20899.0,0.14399589]
[1673732479374,1.09969806,20902.0,20899.0,0.14399589]
[1673732479597,0.30011674,20901.0,20899.0,0.139]
[1673732479865,2.04738406,20900.0,20899.0,0.139]
[1673732480117,2.77124814,20900.0,20899.0,0.139]
[1673732480364,2.77124814,20900.0,20897.0,0.00838496]
[1673732480670,0.58653339,20898.0,20897.0,0.00838496]
[1673732480918,3.01758874,20898.0,20897.0,0.00838496]
[1673732481169,2.73151458,20898.0,20897.0,0.00838496]
[1673732481936,2.78451642,20898.0,20897.0,0.00838496]
[1673732482184,2.42719481,20898.0,20897.0,0.00838496]
[1673732482679,2.47319481,20898.0,20897.0,0.01538496]
[1673732483945,2.80748143,20898.0,20897.0,0.01538496]
[1673732484493,3.12537404,20898.0,20897.0,0.01538496]
[1673732484978,2.9503965,20898.0,20897.0,0.01538496]
[1673732485464,3.16478365,20898.0,20897.0,0.01538496]
[1673732485967,2.95022589,20898.0,20897.0,0.01538496]
[1673732487070,3.16461304,20898.0,20897.0,0.01538496]
[1673732487254,2.95022589,20898.0,20897.0,0.01538496]
[1673732487511,3.56411698,20898.0,20897.0,0.01538496]
[1673732487745,4.41467188,20898.0,20897.0,0.01538496]
[1673732487999,3.96356818,20898.0,20897.0,0.01538496]
[1673732488248,0.1,20897.0,20895.0,0.0054004]
[1673732488495,2.27242469,20896.0,20895.0,0.0054004]
[1673732488755,2.57242469,20896.0,20895.0,0.0054004]
[1673732489262,3.04652686,20896.0,20895.0,0.0364004]
[1673732489543,3.76066454,20896.0,20895.0,0.0364004]
[1673732489769,3.76066454,20896.0,20895.0,0.0054004]
[1673732489770,3.76069017,20896.0,20895.0,0.0054004]
[1673732490041,3.40437118,20896.0,20895.0,0.0364004]
[1673732490268,2.83026901,20896.0,20895.0,0.0310004]
[1673732490572,2.68662469,20896.0,20895.0,4e-07]
[1673732490821,2.53690469,20896.0,20895.0,4e-07]
[1673732491069,2.23690469,20896.0,20895.0,4e-07]
[1673732491615,1.69614469,20896.0,20895.0,0.0110004]
[1673732491879,0.209823,20896.0,20895.0,0.19072635]
[1673732492158,0.052,20896.0,20895.0,0.0110004]
[1673732492667,0.052,20896.0,20895.0,0.1254004]
[1673732492927,0.052,20896.0,20895.0,0.3618004]
[1673732493186,1e-08,20896.0,20895.0,0.2474004]
[1673732493483,2.81864432,20904.0,20895.0,0.2364004]
[1673732493738,2.81864432,20904.0,20898.0,0.1144]
[1673732493739,0.14264432,20904.0,20898.0,0.1144]
[1673732494032,0.8351241,20905.0,20899.0,1.01472595]
[1673732494292,0.8351241,20905.0,20900.0,0.19072595]
[1673732494293,0.14264432,20905.0,20900.0,0.19072595]
[1673732494557,0.21411378,20906.0,20901.0,0.19072595]
[1673732494867,0.97829331,20907.0,20902.0,0.19072595]
[1673732495118,1.00550064,20906.0,20902.0,0.19072595]
[1673732495365,1.12565321,20905.0,20899.0,0.963]
[1673732495623,1.266606,20904.0,20899.0,0.824]
[1673732495873,1.266606,20904.0,20901.0,0.14]
[1673732495874,0.79702269,20903.0,20901.0,0.14]
[1673732496136,1.64387069,20902.0,20901.0,0.14]
[1673732496392,2.09379069,20902.0,20895.0,4e-07]
[1673732496660,0.1133,20900.0,20895.0,4e-07]
[1673732496914,1.43420769,20899.0,20895.0,4e-07]
[1673732497176,0.3,20898.0,20895.0,4e-07]
[1673732497427,1.257057,20898.0,20895.0,4e-07]
[1673732497946,1.25323376,20898.0,20895.0,0.1340004]
[1673732498174,1.4956276,20898.0,20895.0,4e-07]
[1673732498433,0.337751,20897.0,20895.0,0.1340004]
[1673732498679,1.166943,20896.0,20895.0,0.1340004]
[1673732499182,1.466943,20896.0,20895.0,0.1340004]
[1673732499417,1.576941,20896.0,20895.0,0.1340004]
[1673732499675,1.73443843,20896.0,20895.0,0.1340004]
[1673732499919,2.16815943,20896.0,20895.0,0.1340004]
[1673732500196,2.16815943,20896.0,20895.0,4e-07]
[1673732500473,1.576941,20896.0,20895.0,0.1340004]
[1673732500716,0.47856,20896.0,20895.0,4e-07]
[1673732500966,0.47956,20896.0,20895.0,0.1340004]
[1673732501501,0.77956,20896.0,20895.0,0.1340004]
[1673732501777,0.47956,20896.0,20895.0,0.1340004]
[1673732502272,0.77956,20896.0,20895.0,0.1340004]
[1673732502582,1.25812,20896.0,20895.0,0.1340004]
[1673732502794,2.05525943,20896.0,20895.0,0.1340004]
[1673732503062,2.16885943,20896.0,20895.0,0.1340004]
[1673732504354,2.5565732,20896.0,20895.0,0.1340004]
[1673732504583,3.02785104,20896.0,20895.0,0.1340004]
[1673732504843,3.12785104,20896.0,20895.0,0.1340004]
[1673732505141,3.12685104,20896.0,20895.0,4e-07]
[1673732505356,2.98408698,20896.0,20895.0,4e-07]
[1673732505629,3.12685617,20896.0,20895.0,4e-07]
[1673732505887,2.59637321,20896.0,20895.0,4e-07]
[1673732506135,2.88322274,20896.0,20895.0,0.0660004]
[1673732506432,2.88322274,20896.0,20895.0,4e-07]
[1673732506664,0.01793039,20894.0,20892.0,0.0089867]
[1673732506920,2.27313169,20893.0,20892.0,0.0089867]
[1673732507168,2.57313169,20893.0,20892.0,0.0089867]
[1673732508205,2.59013169,20893.0,20892.0,0.0179867]
[1673732508447,1.184081,20893.0,20892.0,0.0179867]
[1673732508718,0.705452,20893.0,20892.0,0.0179867]
[1673732508980,0.226823,20893.0,20892.0,0.0179867]
[1673732509785,0.017,20893.0,20892.0,0.0179867]
[1673732512643,0.01711674,20893.0,20892.0,0.0179867]
[1673732512940,0.31711674,20893.0,20892.0,0.0179867]
[1673732513144,0.317,20893.0,20892.0,0.0179867]
[1673732513647,0.017,20893.0,20892.0,0.0179867]
[1673732514880,0.317,20893.0,20892.0,0.0179867]
[1673732515130,0.017,20893.0,20892.0,0.0179867]
[1673732516158,0.01711674,20893.0,20892.0,0.0179867]
[1673732516417,0.017,20893.0,20892.0,0.0179867]
[1673732518146,0.012,20893.0,20892.0,0.0179867]
[1673732518835,0.012,20893.0,20892.0,0.00871069]
[1673732520125,0.01211674,20893.0,20892.0,0.00871069]
[1673732520389,0.012,20893.0,20892.0,0.00871069]
[1673732521408,0.012,20893.0,20892.0,0.48736269]
[1673732521661,0.012,20893.0,20892.0,0.48714069]
[1673732522149,0.012,20893.0,20892.0,0.96579269]
[1673732522633,0.01793039,20894.0,20892.0,1.735904]
[1673732522879,0.001,20893.0,20892.0,1.875904]
[1673732523130,0.001,20893.0,20892.0,1.735904]
[1673732523376,0.002,20893.0,20892.0,1.875904]
[1673732524395,0.00211674,20893.0,20892.0,0.9186]
[1673732524645,0.002,20893.0,20892.0,0.9186]
[1673732524895,0.08518,20893.0,20892.0,0.9186]
[1673732525146,0.563809,20893.0,20892.0,0.9186]
[1673732525382,1.34255474,20893.0,20892.0,0.9186]
[1673732525910,1.34255474,20893.0,20892.0,0.14]
[1673732526155,1.91867123,20893.0,20892.0,0.14]
[1673732526643,2.24684902,20893.0,20892.0,0.14]
[1673732526899,1.91867123,20893.0,20892.0,0.14]
[1673732527412,1.91667123,20893.0,20891.0,0.008677]
[1673732527659,0.509823,20892.0,20891.0,0.008677]
[1673732527900,1.60992249,20892.0,20891.0,0.008677]
[1673732528146,1.467127,20892.0,20891.0,0.008677]
[1673732528392,1.467127,20892.0,20891.0,0.010677]
[1673732528640,1.60992249,20892.0,20891.0,0.010677]
[1673732529124,1.63192249,20892.0,20891.0,0.012677]
[1673732530124,1.63192249,20892.0,20891.0,0.252677]
[1673732530856,1.489127,20892.0,20891.0,0.252677]
[1673732531140,1.63192249,20892.0,20891.0,0.252677]
[1673732531398,1.489127,20892.0,20891.0,0.252677]
[1673732532144,1.96632869,20892.0,20891.0,0.252677]
[1673732532396,2.10912418,20892.0,20891.0,0.252677]
[1673732532649,2.32331742,20892.0,20891.0,0.252677]
[1673732532897,2.99183941,20892.0,20891.0,0.252677]
[1673732533142,2.58051292,20892.0,20891.0,0.252677]
[1673732533650,2.8551715,20892.0,20891.0,0.252677]
[1673732534141,2.6168308,20892.0,20891.0,0.252677]
[1673732534628,2.33123981,20892.0,20891.0,0.252677]
[1673732535129,2.6168308,20892.0,20891.0,0.252677]
[1673732535372,2.40213968,20892.0,20891.0,0.252677]
[1673732535616,2.85540976,20892.0,20891.0,0.252677]
[1673732535861,3.07019212,20892.0,20891.0,0.252677]
[1673732536116,2.75474171,20892.0,20891.0,0.252677]
[1673732536356,2.32648538,20892.0,20891.0,0.252677]
[1673732540172,2.68444432,20892.0,20891.0,0.252677]
[1673732540417,2.67080566,20892.0,20891.0,0.252677]
[1673732541116,2.38444432,20892.0,20891.0,0.252677]
[1673732541609,2.43443419,20892.0,20891.0,0.252677]
[1673732541861,2.73443419,20892.0,20891.0,0.252677]
[1673732542107,2.37647525,20892.0,20891.0,0.252677]
[1673732542866,2.07647525,20892.0,20891.0,0.252677]
[1673732543139,2.32009669,20892.0,20891.0,0.252677]
[1673732544157,2.62009669,20892.0,20891.0,0.252677]
[1673732544652,2.58427669,20892.0,20891.0,0.252677]
[1673732544905,2.58194321,20892.0,20891.0,0.252677]
[1673732545156,2.37212021,20892.0,20891.0,0.252677]
[1673732545403,2.69194121,20892.0,20891.0,0.252677]
[1673732545652,2.43871707,20892.0,20891.0,0.252677]
[1673732545898,2.54871507,20892.0,20891.0,0.252677]
[1673732546143,1.12248965,20892.0,20891.0,0.2525827]
[1673732547125,1.33729238,20892.0,20891.0,0.2525827]
[1673732547633,1.12248965,20892.0,20891.0,0.2525827]
[1673732547884,1.42248965,20892.0,20891.0,0.2525827]
[1673732548142,1.78051852,20892.0,20891.0,0.2525827]
[1673732548389,1.79496081,20892.0,20891.0,0.2525827]
[1673732548923,1.58015808,20892.0,20891.0,0.2525827]
[1673732549176,3.04043717,20892.0,20890.0,0.00914246]
[1673732549430,1.29490433,20891.0,20890.0,0.00914246]
[1673732549690,2.25225433,20891.0,20890.0,0.00914246]
[1673732550220,2.71792474,20891.0,20890.0,0.00914246]
[1673732550523,2.18807433,20891.0,20890.0,0.01114246]
[1673732550777,2.18807433,20891.0,20890.0,0.00914246]
[1673732551297,2.21307433,20891.0,20890.0,0.02014246]
[1673732552052,2.37636998,20891.0,20890.0,0.02014246]
[1673732553781,2.80622039,20891.0,20890.0,0.02014246]
[1673732554027,2.95672805,20891.0,20890.0,0.02014246]
[1673732554530,3.38657846,20891.0,20890.0,0.02014246]
[1673732554782,2.7934324,20891.0,20890.0,0.02014246]
[1673732555298,3.22328281,20891.0,20890.0,0.02014246]
[1673732555551,2.7934324,20891.0,20890.0,0.02014246]
[1673732556507,3.22328281,20891.0,20890.0,0.02014246]
[1673732557280,3.22328281,20891.0,20890.0,0.01488082]
[1673732557785,3.22328281,20891.0,20890.0,0.25488082]
[1673732560544,3.40398584,20891.0,20890.0,0.25488082]
[1673732561059,3.22328281,20891.0,20890.0,0.25488082]
[1673732561308,2.7934324,20891.0,20890.0,0.25488082]
[1673732562543,2.03267265,20891.0,20890.0,0.25488082]
[1673732562807,0.96335465,20891.0,20890.0,0.25488082]
[1673732563064,0.74855849,20891.0,20890.0,0.25488082]
[1673732563797,0.93835465,20891.0,20890.0,0.24388082]
[1673732564040,0.72355849,20891.0,20890.0,0.24488082]
[1673732564555,0.93835465,20891.0,20890.0,0.24488082]
[1673732565051,0.79515423,20891.0,20890.0,0.24488082]
[1673732565303,1.56033611,20891.0,20890.0,0.24488082]
[1673732565559,2.41548715,20891.0,20890.0,0.24488082]
[1673732565801,2.60778893,20891.0,20890.0,0.24488082]
[1673732566321,2.60790567,20891.0,20890.0,0.24488082]
[1673732568034,2.60778893,20891.0,20890.0,0.24488082]
[1673732569016,2.78445508,20891.0,20890.0,0.24488082]
[1673732569259,2.57463208,20891.0,20890.0,0.24488082]
[1673732569503,1.64569722,20891.0,20890.0,0.24488082]
[1673732569753,1.56069124,20891.0,20890.0,0.24488082]
[1673732570281,1.64569722,20891.0,20890.0,0.24488082]
[1673732570534,1.27403792,20891.0,20890.0,0.24488082]
[1673732570814,1.56070207,20891.0,20890.0,0.24488082]
[1673732571067,0.93869531,20891.0,20890.0,0.24488082]
[1673732571330,0.93869546,20891.0,20890.0,0.24488082]
[1673732571833,1.23869546,20891.0,20890.0,0.24488082]
[1673732572089,1.38202707,20891.0,20890.0,0.24488082]
[1673732572340,1.16702222,20891.0,20890.0,0.24488082]
[1673732572589,2.52431041,20891.0,20890.0,0.24488082]
[1673732572839,2.39887471,20891.0,20890.0,0.24488082]
[1673732573059,2.92606627,20891.0,20890.0,0.24488082]
[1673732573855,3.35591668,20891.0,20890.0,0.24488082]
[1673732576623,2.92606627,20891.0,20890.0,0.24488082]
[1673732576880,2.8402564,20891.0,20890.0,0.24488082]
[1673732578240,3.70931382,20891.0,20890.0,0.24482058]
[1673732578500,3.32009668,20891.0,20890.0,0.24482058]
[1673732579769,2.54013966,20891.0,20890.0,0.24482058]
[1673732580038,2.78393742,20891.0,20890.0,0.24482058]
[1673732580271,2.5933226,20891.0,20890.0,0.24482058]
[1673732580511,2.30673573,20891.0,20890.0,0.24482058]
[1673732581743,2.60673573,20891.0,20890.0,0.24482058]
[1673732582215,2.89331635,20891.0,20890.0,0.24482058]
[1673732582465,2.60673573,20891.0,20890.0,0.24482058]
[1673732583203,2.24865471,20891.0,20890.0,0.24482058]
[1673732583974,2.24853797,20891.0,20890.0,0.24482058]
[1673732584233,2.60677727,20891.0,20890.0,0.24482058]
[1673732584487,2.60689401,20891.0,20890.0,0.24482058]
[1673732584737,2.24865471,20891.0,20890.0,0.24482058]
[1673732585734,2.24853797,20891.0,20890.0,0.24482058]
[1673732585989,2.59343705,20891.0,20890.0,0.24482058]
[1673732586256,0.7236955,20891.0,20890.0,0.24482058]
[1673732587056,0.58035807,20891.0,20890.0,0.24482058]
[1673732587301,0.14333743,20893.0,20891.0,6.285e-05]
[1673732587558,0.14333743,20894.0,20891.0,0.1907888]
[1673732587813,0.35833637,20894.0,20891.0,0.1907888]
[1673732588063,0.35833637,20894.0,20891.0,6.285e-05]
[1673732588575,0.002,20893.0,20891.0,0.14006285]
[1673732588847,0.14333743,20893.0,20891.0,6.285e-05]
[1673732589087,0.14333743,20893.0,20891.0,0.13906285]
[1673732589342,0.35833637,20894.0,20891.0,6.285e-05]
[1673732589595,0.36033637,20894.0,20891.0,0.14006285]
[1673732589846,0.36033637,20894.0,20891.0,0.47873685]
[1673732590104,0.002,20893.0,20891.0,0.61873685]
[1673732590928,0.14333743,20894.0,20891.0,0.95741185]
[1673732591175,0.14533743,20894.0,20891.0,1.09641185]
[1673732591444,0.35932236,20895.0,20891.0,0.95741185]
[1673732591696,0.002,20893.0,20891.0,1.09641185]
[1673732591957,0.002,20893.0,20891.0,0.47873785]
[1673732592228,0.002,20893.0,20891.0,0.13906285]
[1673732592484,0.66033637,20894.0,20891.0,0.13906285]
[1673732592775,0.14333743,20893.0,20891.0,0.27806285]
[1673732593052,1.24392957,20892.0,20891.0,6.285e-05]
[1673732593308,2.55740476,20892.0,20891.0,6.285e-05]
[1673732593599,3.24257134,20892.0,20891.0,6.285e-05]
[1673732593851,3.67242175,20892.0,20891.0,0.13906285]
[1673732594114,3.67200936,20892.0,20891.0,6.285e-05]
[1673732594360,3.70500936,20892.0,20891.0,0.01006285]
[1673732594615,3.77200936,20892.0,20891.0,6.285e-05]
[1673732594922,3.81840936,20892.0,20891.0,0.01106285]
[1673732595472,3.38897134,20892.0,20891.0,0.01106285]
[1673732595730,3.48908808,20892.0,20891.0,0.01106285]
[1673732596502,3.38908808,20892.0,20891.0,0.01106285]
[1673732596738,3.81856918,20892.0,20891.0,0.01106285]
[1673732596966,3.71003505,20892.0,20891.0,0.01106285]
[1673732597222,3.48908808,20892.0,20891.0,0.01106285]
[1673732597459,3.38908808,20892.0,20891.0,0.01106285]
[1673732597712,3.48908808,20892.0,20891.0,0.01106285]
[1673732598425,2.8899215,20892.0,20891.0,0.01106285]
[1673732599418,3.35519593,20892.0,20891.0,0.01106285]
[1673732600644,3.31937593,20892.0,20891.0,0.0109697]
[1673732600863,3.31937593,20892.0,20891.0,0.0009697]
[1673732602333,3.1976867,20892.0,20891.0,0.0009697]
[1673732602582,3.31889169,20892.0,20891.0,0.0009697]
[1673732602833,2.8899215,20892.0,20891.0,0.0009697]
[1673732603075,3.31892421,20892.0,20891.0,0.0009697]
[1673732603810,2.29820307,20892.0,20891.0,0.0009697]
[1673732604063,1.99820307,20892.0,20891.0,0.0009697]
[1673732604559,2.35588282,20892.0,20891.0,0.0009697]
[1673732604810,2.24148282,20892.0,20891.0,0.0009697]
[1673732605304,1.74300982,20892.0,20891.0,0.0009697]
[1673732605554,2.06283082,20892.0,20891.0,0.0009697]
[1673732606286,2.34913328,20892.0,20891.0,0.0009697]
[1673732606773,2.23913528,20892.0,20891.0,0.0009697]
[1673732607300,2.02931228,20892.0,20891.0,0.0009697]
[1673732607559,2.34913328,20892.0,20891.0,0.0009697]
[1673732607805,2.34925002,20892.0,20891.0,0.0009697]
[1673732608043,2.34913328,20892.0,20891.0,0.0009697]
[1673732608291,2.23913528,20892.0,20891.0,0.0009697]
[1673732608553,2.02931228,20892.0,20891.0,0.0009697]
[1673732608801,2.34913328,20892.0,20891.0,0.0009697]
[1673732609042,2.23913528,20892.0,20891.0,0.0009697]
[1673732609292,1.95283282,20892.0,20891.0,0.0009697]
[1673732609787,1.95294956,20892.0,20891.0,0.0009697]
[1673732610077,2.06283082,20892.0,20891.0,0.0009697]
[1673732610316,2.06517774,20892.0,20891.0,0.0009697]
[1673732610573,2.09865082,20892.0,20891.0,0.0009697]
[1673732610825,2.09865082,20892.0,20890.0,0.24382058]
[1673732610826,2.06665082,20892.0,20890.0,0.24382058]
[1673732611072,1.69392049,20892.0,20891.0,0.004]
[1673732611331,2.10967829,20892.0,20891.0,0.004]
[1673732611571,2.07385829,20892.0,20891.0,0.004]
[1673732612540,2.03085829,20892.0,20890.0,0.24382058]
[1673732612804,1.25004377,20891.0,20890.0,0.24382058]
[1673732613057,2.03504534,20891.0,20890.0,0.24382058]
[1673732613303,2.51224703,20891.0,20890.0,0.24382058]
[1673732613606,2.20430639,20891.0,20890.0,0.24382058]
[1673732613885,2.7333091,20891.0,20890.0,0.24382058]
[1673732614395,3.28326166,20891.0,20890.0,0.24382058]
[1673732614901,2.85425895,20891.0,20890.0,0.17741047]
[1673732615151,2.85112618,20891.0,20890.0,0.17741047]
[1673732615398,2.75110575,20891.0,20890.0,0.17741047]
[1673732615658,2.74810575,20891.0,20890.0,0.17741047]
[1673732615908,2.79210575,20891.0,20890.0,0.18941047]
[1673732616160,1.83430639,20891.0,20890.0,0.18941047]
[1673732616421,1.97977954,20891.0,20890.0,0.18941047]
[1673732616925,2.29960054,20891.0,20890.0,0.18941047]
[1673732617170,1.50257785,20891.0,20890.0,0.18941047]
[1673732617410,0.40203368,20891.0,20890.0,0.18941047]
[1673732617897,0.18721916,20891.0,20890.0,0.18941047]
[1673732618385,0.044,20891.0,20890.0,0.18941047]
[1673732619135,0.35803368,20892.0,20890.0,0.17741047]
[1673732619397,0.002,20891.0,20890.0,0.24641047]
[1673732619655,0.14321916,20891.0,20890.0,0.17741047]
[1673732619898,0.14521916,20891.0,20890.0,0.069]
[1673732620380,0.44521916,20891.0,20890.0,0.138]
[1673732620626,0.65803368,20891.0,20888.0,0.01114301]
[1673732620882,2.13040537,20891.0,20890.0,0.069]
[1673732621149,2.11603061,20891.0,20890.0,0.069]
[1673732621410,2.79386764,20891.0,20890.0,0.069]
[1673732621662,2.39757305,20891.0,20890.0,0.069]
[1673732621905,2.39557305,20891.0,20888.0,0.01114301]
[1673732622157,0.3579692,20889.0,20888.0,0.15014301]
[1673732622409,1.6154092,20889.0,20888.0,0.15014301]
[1673732623152,1.6154092,20889.0,20888.0,0.01114301]
[1673732623407,2.27461857,20889.0,20888.0,0.15014301]
[1673732623678,1.40362985,20889.0,20888.0,0.15014301]
[1673732624177,0.62490985,20889.0,20888.0,0.15014301]
[1673732624423,0.48172,20889.0,20888.0,0.15014301]
[1673732625904,0.003,20889.0,20888.0,0.15014301]
[1673732632070,0.14618985,20889.0,20888.0,0.15014301]
[1673732632593,0.003,20889.0,20888.0,0.15014301]
[1673732636179,0.003,20889.0,20888.0,0.74238601]
[1673732637153,0.35892161,20893.0,20889.0,0.103]
[1673732637404,0.00095024,20893.0,20892.0,0.1144]
[1673732637650,0.00095024,20893.0,20892.0,1.26242995]
[1673732637902,0.14318985,20896.0,20892.0,1.26242995]
[1673732638154,0.14318985,20896.0,20893.0,0.19072595]
[1673732638405,0.14415918,20897.0,20894.0,1.26233795]
[1673732638663,0.14415918,20897.0,20896.0,0.1142]
[1673732638913,0.14415918,20897.0,20896.0,1.74910595]
[1673732638914,0.00096933,20897.0,20896.0,1.74910595]
[1673732639164,0.00864561,20898.0,20896.0,1.74910595]
[1673732639417,0.00864561,20898.0,20896.0,1.44418]
[1673732640165,0.12013708,20900.0,20896.0,1.58318]
[1673732640411,0.22471676,20901.0,20896.0,1.77390595]
[1673732640654,0.22471676,20901.0,20897.0,0.19072595]
[1673732640904,0.22471676,20901.0,20898.0,0.95702]
[1673732641145,0.22471676,20901.0,20898.0,1.1392554]
[1673732641413,0.00993524,20901.0,20898.0,1.1392554]
[1673732641667,0.00993524,20901.0,20898.0,0.94852945]
[1673732641926,0.00993524,20901.0,20898.0,1.06952945]
[1673732642414,0.00993524,20901.0,20898.0,1.21052945]
[1673732642917,0.00011674,20900.0,20898.0,0.262]
[1673732643173,0.26053676,20901.0,20896.0,0.592947]
[1673732643437,0.54691212,20901.0,20898.0,0.14]
[1673732643711,0.80442314,20900.0,20895.0,0.478566]
[1673732643967,0.88964162,20900.0,20895.0,0.478566]
[1673732644240,1.10442314,20900.0,20894.0,1.970484]
[1673732644493,1.58289814,20900.0,20894.0,1.970484]
[1673732644758,1.58289814,20900.0,20898.0,0.14]
[1673732645008,0.00011674,20899.0,20894.0,2.16107705]
[1673732645265,1.58289814,20900.0,20895.0,0.139]
[1673732645571,1.58289814,20900.0,20895.0,0.19072595]
[1673732646104,1.36811662,20900.0,20895.0,0.19072595]
[1673732646614,1.84658462,20900.0,20895.0,0.19072595]
[1673732647630,1.84658462,20900.0,20895.0,0.33172595]
[1673732647865,1.84658462,20900.0,20895.0,0.66760795]
[1673732648136,1.84658462,20900.0,20895.0,0.80860795]
[1673732648395,1.84658462,20900.0,20895.0,0.66760795]
[1673732648647,1.54658462,20900.0,20896.0,0.1]
[1673732648900,1.54658462,20900.0,20896.0,0.29072595]
[1673732649149,1.54658462,20900.0,20896.0,0.19072595]
[1673732649370,1.54658462,20900.0,20895.0,0.578582]
[1673732649638,1.54658462,20900.0,20896.0,0.1]
[1673732649862,1.54658462,20900.0,20895.0,0.578582]
[1673732650169,1.54658462,20900.0,20895.0,0.66930795]
[1673732650424,1.54658462,20900.0,20896.0,0.141]
[1673732650683,0.30011674,20899.0,20896.0,0.141]
[1673732650927,0.778496,20899.0,20896.0,0.141]
[1673732651172,0.778496,20899.0,20895.0,0.19072595]
[1673732651430,0.778496,20899.0,20895.0,0.14]
[1673732651695,0.778496,20899.0,20894.0,2.4489441]
[1673732651910,0.778496,20899.0,20896.0,0.141]
[1673732652227,0.00011674,20898.0,20896.0,0.141]
[1673732652476,0.778496,20899.0,20896.0,0.141]
[1673732653246,0.778496,20899.0,20894.0,1.11159305]
[1673732653520,0.778496,20899.0,20895.0,0.14]
[1673732653789,0.778496,20899.0,20896.0,0.141]
[1673732653790,0.98200554,20899.0,20896.0,0.141]
[1673732654026,0.319821,20898.0,20891.0,0.1141]
[1673732654268,0.478562,20896.0,20891.0,0.836]
[1673732654559,0.478562,20896.0,20894.0,0.139]
[1673732654772,0.3,20895.0,20894.0,0.139]
[1673732655253,0.30011674,20895.0,20891.0,0.836]
[1673732655500,0.77871474,20895.0,20891.0,0.836]
[1673732656538,1.25729774,20895.0,20891.0,1.02672595]
[1673732656784,1.25729774,20895.0,20891.0,1.16672595]
[1673732657053,1.25829774,20895.0,20891.0,1.16672595]
[1673732657308,1.25729774,20895.0,20891.0,1.02672595]
[1673732657554,1.25729774,20895.0,20891.0,0.976]
[1673732657555,1.25829774,20895.0,20891.0,0.976]
[1673732658283,1.25829774,20895.0,20891.0,0.836]
[1673732658530,1.25829774,20895.0,20891.0,0.976]
[1673732660042,1.258181,20895.0,20891.0,1.16672595]
[1673732660285,0.958181,20895.0,20891.0,1.16672595]
[1673732660785,0.958181,20895.0,20891.0,0.976]
[1673732661037,0.479583,20895.0,20891.0,1.16672595]
[1673732661546,0.479583,20895.0,20891.0,0.976]
[1673732661766,0.479583,20895.0,20891.0,1.16672595]
[1673732662730,0.001,20895.0,20891.0,0.976]
[1673732663216,0.001,20895.0,20892.0,0.24297394]
[1673732663758,0.28054642,20895.0,20892.0,0.24297394]
[1673732664260,0.32420574,20894.0,20892.0,0.24297394]
[1673732664507,0.32420574,20894.0,20891.0,0.976]
[1673732664761,0.32420574,20894.0,20892.0,0.24499243]
[1673732665013,0.32420574,20894.0,20892.0,0.37199243]
[1673732665270,0.32420574,20894.0,20892.0,0.24499243]
[1673732665519,0.001,20894.0,20892.0,0.37199243]
[1673732665758,0.001,20894.0,20893.0,0.31716848]
[1673732666779,0.47957149,20896.0,20893.0,0.31716848]
[1673732666780,0.00099049,20896.0,20893.0,0.31716848]
[1673732667500,0.28324489,20895.0,20893.0,0.31716848]
[1673732667749,0.76183189,20895.0,20893.0,0.37087839]
[1673732668031,0.24499292,20894.0,20893.0,0.054]
[1673732668291,0.54499292,20894.0,20891.0,1.15965425]
[1673732668538,0.54499292,20894.0,20893.0,0.054]
[1673732668790,0.54499292,20894.0,20891.0,1.15965425]
[1673732669040,0.24499292,20894.0,20893.0,0.054]
[1673732669293,0.24499292,20894.0,20892.0,0.23810343]
[1673732669541,0.24599292,20894.0,20892.0,0.23810343]
[1673732670828,0.478602,20895.0,20892.0,0.23810343]
[1673732671081,0.001,20894.0,20892.0,0.36510343]
[1673732671785,0.27600335,20895.0,20892.0,0.23810343]
[1673732672035,0.27700335,20895.0,20892.0,0.36510343]
[1673732672547,0.001,20894.0,20892.0,0.49210343]
[1673732672799,0.75459135,20895.0,20892.0,0.23810343]
[1673732674674,0.28105897,20894.0,20892.0,0.23810343]
[1673732676677,0.28205897,20894.0,20892.0,0.36510343]
[1673732679424,0.42477352,20894.0,20892.0,0.36510343]
[1673732680463,0.001,20894.0,20893.0,0.30778149]
[1673732681718,0.44271455,20894.0,20893.0,0.30778149]
[1673732682742,0.44271455,20894.0,20893.0,0.36178149]
[1673732682984,0.14271455,20894.0,20893.0,0.36178149]
[1673732683202,0.65749607,20894.0,20893.0,0.054]
[1673732683447,1.26231248,20894.0,20893.0,0.054]
[1673732684187,2.02729384,20894.0,20893.0,0.054]
[1673732684410,2.26459018,20894.0,20893.0,0.054]
[1673732684619,2.58465258,20894.0,20893.0,0.054]
[1673732684920,2.29803582,20894.0,20893.0,0.054]
[1673732685141,2.02911086,20894.0,20893.0,0.054]
[1673732685431,1.70928986,20894.0,20893.0,0.054]
[1673732685877,1.74510986,20894.0,20893.0,0.054]
[1673732686121,2.00042257,20894.0,20893.0,0.054]
[1673732686383,2.32024357,20894.0,20893.0,0.054]
[1673732686528,2.00042257,20894.0,20893.0,0.054]
[1673732686733,2.28712975,20894.0,20893.0,0.054]
[1673732687162,1.79911515,20894.0,20893.0,0.054]
[1673732687435,2.01404928,20894.0,20893.0,0.054]
[1673732687835,2.01416602,20894.0,20893.0,0.054]
[1673732688443,2.01404928,20894.0,20893.0,0.054]
[1673732688942,1.42745884,20894.0,20893.0,0.054]
[1673732689190,1.57077904,20894.0,20893.0,0.054]
[1673732689676,1.09217304,20894.0,20893.0,0.054]
[1673732690171,1.23556002,20894.0,20893.0,0.05392095]
[1673732690415,1.47332349,20894.0,20893.0,0.05392095]